bitfinex-derivatives/quotes_ETHF0:USTF0_20251118
["timestamp","ask_amount","ask_price","bid_price","bid_amount"]
[1763488923397,0.51594,3141.9,3141.7,0.51595]
[1763488923597,0.00306487,3141.9,3141.8,0.51595]
[1763488924591,0.51596,3141.8,3141.5,3.2078]
[1763488924797,0.87778,3141.6,3141.5,3.2078]
[1763488925191,0.51605,3141.2,3141.1,3.72385]
[1763488925592,0.2083,3141.5,3141.1,3.2078]
[1763488925797,0.51603,3141.4,3141.3,0.51603]
[1763488926401,0.51605,3141.2,3141.1,3.2078]
[1763488926601,0.87785,3141.2,3141.1,3.2078]
[1763488926996,1.59409999,3141.2,3141.1,3.2078]
[1763488927691,0.87786,3141.1,3141.0,0.00477805]
[1763488927896,0.87798,3140.4,3140.3,3.2078]
[1763488928294,0.51618,3140.4,3140.3,3.2078]
[1763488928704,0.87798,3140.4,3140.3,3.2078]
[1763488930000,0.87803,3140.1,3140.0,0.00477805]
[1763488931305,1.59638901,3140.1,3140.0,0.00477805]
[1763488933308,0.87806,3139.9,3139.8,0.00242016]
[1763488933501,4.80421901,3139.9,3139.8,0.00242016]
[1763488935004,4.80421901,3139.9,3138.7,3.2078]
[1763488935005,0.3618,3139.2,3138.7,3.2078]
[1763488935303,0.51644,3138.9,3138.7,0.86976]
[1763488935499,0.51648,3138.6,3138.5,0.3533]
[1763488935702,0.51644,3138.8,3138.6,0.51647]
[1763488936108,0.51646,3138.7,3138.6,0.35577179]
[1763488936309,3.2078,3139.5,3138.9,0.3533]
[1763488936610,0.51639,3139.1,3139.0,0.3533]
[1763488936804,0.3618,3138.8,3138.7,0.51646]
[1763488936998,0.51644,3138.9,3138.8,0.3533]
[1763488937211,0.87826,3138.7,3138.6,0.00247179]
[1763488937400,0.88065376,3138.7,3138.6,0.00247179]
[1763488937597,4.08845376,3138.7,3138.6,0.00247179]
[1763488937807,4.08845376,3138.7,3138.6,0.35577179]
[1763488938111,3.72665376,3138.7,3138.6,0.35577179]
[1763488939104,0.51885376,3138.7,3138.6,0.87225179]
[1763488939304,0.51885376,3138.7,3138.6,0.35577179]
[1763488939501,4.08845376,3138.7,3138.6,0.00247179]
[1763488941998,3.72665376,3138.7,3138.6,0.35747179]
[1763488942602,0.00239376,3138.7,3138.6,4.08175179]
[1763488945606,0.90145376,3138.7,3138.6,3.21027179]
[1763488945807,0.90145376,3138.7,3138.6,0.00247179]
[1763488946908,0.00239376,3138.7,3138.6,0.35747179]
[1763488947315,0.51885376,3138.7,3138.6,0.35747179]
[1763488947516,0.90145376,3138.7,3138.6,0.00247179]
[1763488948921,0.00239376,3138.7,3138.6,0.89775179]
[1763488949624,0.89385376,3138.7,3138.6,0.00247179]
[1763488950912,0.37739376,3138.7,3138.6,0.51895179]
[1763488951108,3.2078,3139.4,3139.3,0.89516]
[1763488951921,3.72414,3139.4,3139.3,0.89516]
[1763488952117,0.51638,3139.2,3139.1,0.89519]
[1763488952312,0.51636,3139.3,3139.2,0.51637]
[1763488953009,3.72706244,3139.4,3139.3,0.89516]
[1763488953721,3.72706244,3139.4,3139.3,0.3788]
[1763488953916,0.89139,3139.2,3139.1,0.51639]
[1763488954122,0.375,3139.2,3139.1,0.51639]
[1763488954323,0.51638,3139.2,3139.1,0.3788]
[1763488954522,0.89138,3139.2,3139.1,0.3788]
[1763488954719,0.51639,3139.1,3139.0,0.89521]
[1763488956113,1.10061,3139.0,3138.9,0.51642]
[1763488956320,1.10061,3139.0,3138.7,0.89526]
[1763488956321,0.51646,3138.8,3138.7,0.89526]
[1763488956521,0.89146,3138.8,3138.7,0.89526]
[1763488957115,0.51646,3138.7,3138.6,3.21027179]
[1763488957513,0.89146,3138.7,3138.6,3.21027179]
[1763488958122,0.89146,3138.7,3138.6,0.00247179]
[1763488959127,0.51646,3138.7,3138.6,0.38127179]
[1763488959319,0.51644,3138.8,3138.7,0.3788]
[1763488959513,0.89146,3138.7,3138.6,0.00247179]
[1763488962223,1.60649941,3138.7,3138.6,0.00247179]
[1763488962433,0.51663,3137.7,3137.5,1.71244988]
[1763488962721,3.2078,3137.6,3137.3,1.71244988]
[1763488962923,0.2092,3137.5,3137.1,0.51672]
[1763488963125,0.51672,3137.1,3136.9,0.51675]
[1763488963313,0.00278791,3137.1,3137.0,0.51674]
[1763488963520,0.00278791,3137.1,3137.0,0.89554]
[1763488964727,0.00278791,3137.1,3137.0,1.11364]
[1763488965421,0.00278791,3137.1,3137.0,0.89554]
[1763488969123,0.00278791,3137.1,3137.0,1.11364]
[1763488969325,0.00477805,3137.3,3137.2,0.89551]
[1763488970327,0.00792701,3137.3,3137.2,0.89551]
[1763488972725,3.2078,3138.0,3137.9,0.3788]
[1763488972921,0.51657,3138.0,3137.9,0.3788]
[1763488973723,0.51657,3138.0,3137.9,0.89539]
[1763488973919,0.51880241,3138.0,3137.9,0.89539]
[1763488974332,0.89380241,3138.0,3137.9,0.89539]
[1763488974534,0.375,3137.4,3137.2,3.2078]
[1763488974731,0.89169,3137.3,3137.2,3.2078]
[1763488975031,0.51669,3137.3,3137.2,3.5866]
[1763488975435,0.375,3137.2,3136.9,0.00395435]
[1763488975732,0.51674,3137.0,3136.9,0.89950435]
[1763488976439,0.51672,3137.1,3137.0,0.8955]
[1763488977233,0.51672,3137.3,3137.2,0.51669]
[1763488977437,0.83262,3137.3,3137.2,0.51669]
[1763488977637,0.83264,3137.2,3137.1,0.51672]
[1763488978737,0.83264,3137.2,3137.1,0.84602]
[1763488979131,0.83266,3136.9,3136.8,2.57452435]
[1763488979728,0.83266,3136.9,3136.8,2.05777435]
[1763488980033,0.51676,3136.9,3136.8,2.39103372]
[1763488980737,0.83266,3136.9,3136.8,0.00395937]
[1763488981345,3.2078,3137.2,3137.1,0.84602]
[1763488981545,0.83262,3137.1,3137.0,0.51674]
[1763488982037,3.2078,3137.2,3137.1,0.84602]
[1763488982344,0.5109,3137.5,3137.4,0.51667]
[1763488982537,0.21143241,3138.0,3137.9,0.84589]
[1763488982538,0.00223241,3138.0,3137.9,0.84589]
[1763488982839,3.2078,3138.8,3138.7,0.3293]
[1763488983041,0.195,3140.0,3138.0,0.1185]
[1763488983042,0.51641,3139.1,3138.9,0.51643]
[1763488983240,0.51641,3139.1,3139.0,0.51641]
[1763488983635,3.2078,3139.3,3139.2,0.84568]
[1763488983839,3.2078,3139.9,3139.4,0.51634]
[1763488984032,3.2078,3139.9,3139.7,0.51628]
[1763488984234,0.00393502,3139.9,3139.8,0.3293]
[1763488986040,0.5163,3139.7,3139.4,0.51633]
[1763488986342,0.00393502,3139.9,3139.7,0.51629]
[1763488986544,0.51629,3139.8,3139.7,0.3293]
[1763488987843,0.00393502,3139.9,3139.8,0.3293]
[1763488990950,0.00393502,3139.9,3139.8,0.84558]
[1763488991841,3.2078,3140.4,3140.3,0.8455]
[1763488992145,3.2078,3140.4,3140.3,0.3293]
[1763488992338,0.5162,3140.3,3140.1,0.51623]
[1763488992542,0.5162,3140.3,3140.2,0.51621]
[1763488992738,0.51613,3140.7,3140.5,0.51615]
[1763488992946,0.51613,3140.7,3139.5,0.1037]
[1763488992947,0.51929698,3140.7,3140.6,0.84545]
[1763488993444,0.00316698,3140.7,3140.6,0.84545]
[1763488994141,0.00316698,3140.7,3140.6,0.3293]
[1763488995337,0.71118,3140.5,3140.3,0.51619]
[1763488995949,0.83211,3140.2,3140.1,3.2078]
[1763488996453,0.51627,3139.9,3139.8,0.84558]
[1763488996950,0.51625,3140.0,3139.9,0.84556]
[1763488997755,0.51625,3140.0,3139.9,0.3293]
[1763488997954,0.51625,3140.0,3139.9,0.84556]
[1763488998553,0.71125,3140.0,3139.9,0.3293]
[1763488998749,0.51625,3140.0,3139.9,0.84556]
[1763488998949,0.51623,3140.1,3140.0,0.84553]
[1763488999146,0.195,3140.5,3140.2,0.3293]
[1763488999451,0.00316698,3140.7,3140.0,3.2078]
[1763488999452,0.00316698,3140.7,3140.6,0.84545]
[1763489001045,0.195,3142.0,3140.5,0.1206]
[1763489001246,0.51601,3141.5,3140.9,3.21257805]
[1763489001457,0.3395,3141.3,3140.9,3.21257805]
[1763489001648,0.2051,3141.0,3140.9,3.72867805]
[1763489002047,0.72255157,3141.0,3140.9,3.72867805]
[1763489002950,2.13545157,3141.7,3141.1,0.51605]
[1763489003458,2.13545157,3141.7,3141.6,0.83348]
[1763489003852,2.13545157,3141.7,3141.6,0.52009482]
[1763489004559,2.99092157,3141.7,3141.6,0.00411482]
[1763489004858,2.47495157,3141.7,3141.6,0.52009482]
[1763489005158,2.65142157,3141.7,3141.6,0.52009482]
[1763489005352,2.99092157,3141.7,3141.6,0.52009482]
[1763489005856,2.99092157,3141.7,3141.6,0.00411482]
[1763489007459,2.13545157,3141.7,3141.6,0.88649482]
[1763489007952,0.71092,3142.0,3141.9,0.51593]
[1763489007953,0.195,3142.0,3141.9,0.51593]
[1763489008147,0.195,3142.0,3141.9,3.72373]
[1763489008351,1.13722688,3143.4,3142.7,0.3664]
[1763489008559,0.26062535,3147.3,3145.1,3.2078]
[1763489008749,3.4231,3147.5,3145.1,3.2078]
[1763489008750,0.71035617,3147.2,3146.1,0.51524]
[1763489008946,0.71035617,3147.3,3146.2,0.40472276]
[1763489009144,0.71035617,3147.2,3146.3,0.40472276]
[1763489009354,0.2153,3147.5,3146.4,2.44870073]
[1763489009554,0.2153,3147.5,3147.0,3.2078]
[1763489009754,0.2153,3147.5,3147.1,1.54970073]
[1763489009955,0.2153,3147.5,3146.3,3.815]
[1763489009956,2.15337,3148.3,3147.4,3.2078]
[1763489010158,2.15337,3148.3,3147.8,2.24879991]
[1763489010452,2.15337,3148.3,3147.9,1.54970073]
[1763489010657,0.2153,3149.0,3147.5,2.25356992]
[1763489010658,0.51485,3148.6,3148.2,5.45659991]
[1763489010852,0.2153,3149.0,3148.3,1.54970073]
[1763489011050,0.2153,3149.0,3148.4,1.54970073]
[1763489011261,0.2153,3149.6,3149.3,0.51472]
[1763489011555,0.2153,3149.6,3147.8,2.86483774]
[1763489011556,0.2153,3149.6,3149.5,3.2078]
[1763489011759,0.2153,3149.6,3149.5,4.17830073]
[1763489011949,0.51469,3149.5,3149.1,0.00477001]
[1763489012255,0.51469,3149.5,3148.5,2.86483774]
[1763489012256,0.2153,3148.8,3148.2,3.2078]
[1763489012458,0.2153,3148.8,3147.7,4.01180355]
[1763489012459,0.2153,3148.8,3148.6,3.2078]
[1763489012648,0.51482,3148.7,3148.4,1.68485451]
[1763489013056,0.51485,3148.5,3148.4,1.68485451]
[1763489013352,6.73012,3148.8,3148.4,1.68485451]
[1763489013554,0.2153,3148.8,3148.3,1.68485451]
[1763489013853,0.2153,3148.8,3148.6,3.2078]
[1763489014163,0.2153,3149.6,3148.8,0.5148]
[1763489014364,0.51458,3150.2,3149.5,4.89196224]
[1763489014549,0.2153,3149.6,3149.5,1.10496224]
[1763489014749,0.51479,3148.9,3148.2,3.21257001]
[1763489014955,3.2078,3149.3,3148.2,3.21257001]
[1763489015154,0.51477,3149.0,3148.2,3.21257001]
[1763489015558,0.5148,3148.9,3148.2,3.21257001]
[1763489015863,0.5148,3148.9,3148.7,0.84217699]
[1763489016160,0.5148,3148.9,3148.8,0.84217699]
[1763489016561,0.5148,3148.9,3148.7,0.84217699]
[1763489016963,3.2078,3149.3,3148.7,0.84217699]
[1763489017158,3.2078,3149.3,3148.4,0.84217699]
[1763489017360,0.5148,3148.9,3148.4,0.84217699]
[1763489017558,0.5148,3148.9,3148.3,0.84217699]
[1763489017559,0.51486,3148.5,3148.3,0.84217699]
[1763489017761,0.51486,3148.5,3148.2,4.054747]
[1763489018264,0.51488,3148.4,3148.2,3.21257001]
[1763489018757,3.2078,3148.9,3148.2,3.21257001]
[1763489018758,0.51484,3148.6,3148.2,3.21257001]
[1763489018961,0.51486,3148.5,3148.2,3.21257001]
[1763489019560,1.954,3150.3,3148.2,3.21257001]
[1763489019561,3.2078,3149.5,3148.6,0.72813]
[1763489019762,0.5147,3149.4,3148.9,3.2078]
[1763489019968,0.51473,3149.3,3148.9,3.2078]
[1763489020159,0.51474,3149.2,3148.9,3.2078]
[1763489020557,0.51482,3148.7,3148.6,0.2133]
[1763489020861,0.51486,3148.5,3148.2,0.00477001]
[1763489021266,0.51487,3148.4,3148.2,0.00477001]
[1763489021462,0.51485,3148.6,3148.2,0.00477001]
[1763489021661,0.51486,3148.5,3148.2,0.00477001]
[1763489021960,0.51487,3148.4,3148.2,0.00477001]
[1763489023764,0.51501,3147.5,3147.0,3.2078]
[1763489024161,0.51501,3147.6,3147.4,3.21066656]
[1763489025964,0.51501,3147.6,3147.5,0.41912983]
[1763489026172,0.51501,3147.6,3147.5,1.39264626]
[1763489026768,0.515,3147.6,3147.5,1.39264626]
[1763489028157,0.00474327,3147.8,3147.7,0.3664]
[1763489028360,0.00474327,3147.8,3147.7,1.39264626]
[1763489028562,0.51971327,3147.8,3147.7,1.39264626]
[1763489028856,0.00474327,3147.8,3147.7,1.39264626]
[1763489029163,0.00474327,3147.8,3147.7,1.75904626]
[1763489029359,0.51971327,3147.8,3147.7,1.39264626]
[1763489029559,0.51971327,3147.8,3147.7,0.41912983]
[1763489029771,0.51971327,3147.8,3147.4,3.21066656]
[1763489029772,0.51505,3147.3,3147.2,0.00476198]
[1763489029962,3.72285,3147.3,3147.2,0.00476198]
[1763489030565,3.72285,3147.3,3146.9,3.2078]
[1763489030566,0.51516,3146.6,3146.5,0.2133]
[1763489030769,0.51802656,3146.6,3146.5,0.21574598]
[1763489032969,0.00286656,3146.6,3146.5,0.21574598]
[1763489033168,0.51802656,3146.6,3146.5,0.21574598]
[1763489033357,0.51802656,3146.6,3146.5,2.41807481]
[1763489033560,0.51802656,3146.6,3146.5,0.21574598]
[1763489034070,0.00286656,3146.6,3146.5,0.58214598]
[1763489034669,3.2078,3147.3,3146.5,0.58214598]
[1763489034870,3.72285,3147.3,3147.2,1.68346914]
[1763489035071,3.72285,3147.3,3147.2,0.52506914]
[1763489035272,0.51513,3146.8,3146.7,2.24462552]
[1763489035467,3.72285,3147.3,3147.2,0.2133]
[1763489036476,0.51505,3147.3,3147.2,0.2133]
[1763489037373,0.30831376,3147.3,3147.2,0.2133]
[1763489037675,0.30831376,3147.3,3147.2,2.48048579]
[1763489037878,0.00474327,3147.8,3147.3,0.51505]
[1763489038178,0.51971327,3147.8,3147.7,3.2078]
[1763489038363,0.515,3147.6,3147.5,2.26663274]
[1763489038774,0.51503,3147.4,3147.3,2.86483774]
[1763489039072,0.51505,3147.3,3147.2,2.86483774]
[1763489039270,0.51506,3147.2,3147.1,6.07263774]
[1763489039877,0.51506,3147.2,3147.1,3.2078]
[1763489041377,0.51508,3147.1,3147.0,2.26925411]
[1763489041575,0.51511,3146.9,3146.8,2.26925411]
[1763489041769,0.51511,3146.9,3146.8,0.89585155]
[1763489041974,3.2078,3147.5,3146.8,4.53320566]
[1763489042171,3.2078,3147.5,3147.1,2.26925411]
[1763489042374,3.2078,3147.5,3147.2,0.89585155]
[1763489042580,0.51503,3147.4,3147.3,0.89585155]
[1763489042972,0.51503,3147.4,3147.3,2.26395155]
[1763489043175,0.51503,3147.4,3147.3,0.89585155]
[1763489043570,0.51972327,3147.8,3147.7,1.3681]
[1763489043783,0.51972327,3147.8,3147.7,7.74192484]
[1763489044579,0.51972327,3147.8,3147.7,6.37382484]
[1763489044780,0.51972327,3147.8,3147.7,4.10365155]
[1763489044972,0.51972327,3147.8,3147.7,5.47175155]
[1763489046575,0.51972327,3147.8,3147.7,7.74192484]
[1763489047180,3.2078,3148.8,3147.7,13.74192484]
[1763489047479,0.51488,3148.3,3148.2,0.8368]
[1763489047679,0.51488,3148.3,3148.2,1.73265155]
[1763489047881,0.51488,3148.3,3148.2,0.89585155]
[1763489049283,3.72268,3148.3,3148.2,0.89585155]
[1763489050281,3.72268,3148.3,3148.2,2.03216137]
[1763489050581,0.51493,3148.0,3147.9,0.00476198]
[1763489051177,3.176,3148.0,3147.1,3.2078]
[1763489051486,0.51506,3147.2,3147.1,4.5759]
[1763489052376,0.51511,3146.9,3146.8,1.37286198]
[1763489052573,0.51506,3147.2,3147.1,1.3681]
[1763489052776,0.51506,3147.2,3147.1,4.5759]
[1763489053586,0.51506,3147.2,3147.1,3.2078]
[1763489055286,0.51508,3147.1,3147.0,0.8368]
[1763489055588,0.51511,3146.9,3146.8,1.71507182]
[1763489055982,0.51511,3146.9,3146.8,0.00476198]
[1763489058986,1.14050974,3147.7,3146.8,1.37286198]
[1763489059290,0.51511,3146.9,3146.8,1.37286198]
[1763489060283,0.51511,3146.9,3146.8,0.00476198]
[1763489060486,0.51511,3146.9,3146.8,1.27086198]
[1763489062493,0.515,3147.6,3147.5,0.8119]
[1763489062996,0.515,3147.6,3147.5,2.078]
[1763489063792,0.515,3147.6,3147.5,0.8119]
[1763489065192,0.515,3147.6,3147.5,2.078]
[1763489067100,0.51503,3147.4,3147.3,3.2078]
[1763489068101,0.51508,3147.1,3147.0,0.8119]
[1763489068304,0.51508,3147.1,3147.0,5.2858]
[1763489068598,4.34830974,3147.9,3147.5,0.7627]
[1763489069100,3.2078,3147.9,3147.5,0.7627]
[1763489069304,4.34830974,3147.9,3147.5,0.7627]
[1763489069490,4.31730974,3147.8,3147.0,4.0197]
[1763489069695,0.51508,3147.1,3147.0,3.2078]
[1763489069899,0.51511,3146.9,3146.8,0.00476198]
[1763489071298,3.2078,3147.0,3146.5,0.00244598]
[1763489071600,0.51516,3146.6,3146.5,0.00244598]
[1763489074504,0.51516,3146.6,3146.5,0.76514598]
[1763489074704,0.51516,3146.6,3146.5,2.01034598]
[1763489074893,0.51516,3146.6,3146.5,8.01034598]
[1763489075299,0.51516,3146.6,3146.5,2.01034598]
[1763489075605,5.685,3147.5,3146.5,1.28031598]
[1763489075809,5.685,3147.5,3147.0,2.0079]
[1763489075810,0.51508,3147.1,3147.0,2.0079]
[1763489076208,0.51508,3147.1,3147.0,0.7627]
[1763489076913,0.00476198,3147.4,3147.3,1.2452]
[1763489077207,0.51508,3147.1,3147.0,2.0079]
[1763489077409,0.51508,3147.1,3147.0,0.7627]
[1763489078013,0.51508,3147.1,3147.0,2.0079]
[1763489078812,0.00476198,3147.4,3147.3,1.2452]
[1763489079015,0.00476198,3147.4,3147.3,4.453]
[1763489079313,0.51492,3148.1,3148.0,0.7627]
[1763489079916,0.515,3147.6,3147.5,0.7627]
[1763489083522,0.51503,3147.4,3147.3,3.2078]
[1763489085122,0.51503,3147.4,3147.3,4.453]
[1763489088021,0.51503,3147.4,3147.3,3.2078]
[1763489088809,4.34830974,3147.8,3146.8,3.2078]
[1763489088810,0.51511,3146.9,3146.8,3.2078]
[1763489091523,0.51511,3146.9,3146.8,4.453]
[1763489092924,0.51511,3146.9,3146.8,3.2078]
[1763489095224,0.51516,3146.6,3146.5,0.76990796]
[1763489096320,3.72296,3146.6,3146.5,0.76990796]
[1763489096628,0.51516,3146.6,3146.5,0.76990796]
[1763489098632,0.51516,3146.6,3146.5,5.22290796]
[1763489101026,1.14050974,3147.2,3146.5,5.22290796]
[1763489101329,1.65550974,3147.6,3147.5,1.8228]
[1763489101535,2.22326549,3148.5,3148.4,1.113]
[1763489101734,0.51485,3148.5,3148.4,1.113]
[1763489102216,0.51485,3148.5,3148.2,3.2078]
[1763489102217,5.77729202,3149.3,3148.5,1.8228]
[1763489102423,0.51484,3148.6,3148.5,1.8228]
[1763489102734,0.51488,3148.3,3148.2,4.32556198]
[1763489102922,0.51488,3148.3,3148.2,0.00476198]
[1763489103323,0.51488,3148.3,3148.2,1.11776198]
[1763489103830,0.51487,3148.4,3148.3,1.113]
[1763489104727,3.2078,3148.8,3148.7,1.113]
[1763489104931,0.5148,3148.8,3148.7,1.113]
[1763489107136,0.51482,3148.7,3148.6,3.2078]
[1763489108440,0.51482,3148.7,3148.6,4.3208]
[1763489108628,0.80772,3148.7,3148.6,3.2078]
[1763489108834,0.80778,3148.3,3148.2,0.00476198]
[1763489109035,0.51488,3148.3,3148.2,4.32556198]
[1763489110641,0.80778,3148.3,3148.2,0.00476198]
[1763489111031,4.01558,3148.3,3148.2,0.00476198]
[1763489111227,0.515,3147.6,3147.5,0.7098]
[1763489111441,0.8079,3147.6,3147.5,0.7098]
[1763489112127,0.515,3147.6,3147.5,1.8228]
[1763489113435,3.2078,3148.1,3147.7,1.113]
[1763489113639,0.51497,3147.8,3147.7,1.113]
[1763489113937,0.515,3147.6,3147.5,0.7098]
[1763489114133,0.515,3147.6,3147.5,1.8228]
[1763489114538,0.2929,3148.1,3148.0,0.7098]
[1763489114738,0.515,3147.6,3147.5,5.0306]
[1763489115234,0.515,3147.6,3147.5,1.8228]
[1763489116237,0.62057411,3147.6,3147.5,1.8228]
[1763489117540,0.62057411,3147.6,3147.5,5.0306]
[1763489117842,0.62057411,3147.6,3147.5,1.8228]
[1763489118343,0.2929,3147.3,3147.0,0.7098]
[1763489118531,3.5007,3147.1,3146.3,3.2078]
[1763489118733,3.2078,3147.5,3147.0,1.8228]
[1763489118933,0.51508,3147.1,3147.0,1.8228]
[1763489119133,0.62065411,3147.1,3147.0,1.8228]
[1763489119342,0.51516,3146.6,3146.5,1.82524598]
[1763489120343,0.62073411,3146.6,3146.5,1.82524598]
[1763489121449,0.10557411,3146.6,3146.5,1.82524598]
[1763489121649,0.62073411,3146.6,3146.5,1.82524598]
[1763489122850,1.50253411,3146.6,3146.5,0.71224598]
[1763489123036,1.50253411,3146.6,3146.5,0.00244598]
[1763489124151,1.39701,3146.3,3146.2,0.00476198]
[1763489124448,0.62078411,3146.3,3146.2,1.11296198]
[1763489125252,0.62078411,3146.3,3146.2,1.11679632]
[1763489125253,0.62323009,3146.3,3146.2,1.11679632]
[1763489125446,3.009e-05,3146.3,3146.2,1.11679632]
[1763489125648,0.00476198,3147.4,3147.0,1.777]
[1763489125649,0.51508,3147.1,3147.0,1.777]
[1763489126850,0.00476198,3147.4,3146.5,4.9848]
[1763489126851,0.51516,3146.6,3146.5,4.9848]
[1763489127052,0.51516,3146.6,3146.5,1.777]
[1763489128451,0.51516,3146.6,3146.5,4.9848]
[1763489130549,1.0898,3146.1,3145.2,3.2078]
[1763489130849,0.51533,3145.6,3145.5,1.7525]
[1763489131645,0.00304618,3145.6,3145.5,6.71303606]
[1763489131846,0.51537618,3145.6,3145.5,7.75573606]
[1763489132155,4.618e-05,3145.6,3145.5,6.71303606]
[1763489132353,3.2078,3146.6,3145.5,0.71303606]
[1763489132544,3.2078,3146.6,3146.0,3.8553]
[1763489132846,0.51524,3146.1,3146.0,3.8553]
[1763489133053,0.51524,3146.1,3146.0,4.898]
[1763489133248,4e-05,3146.1,3146.0,4.898]
[1763489133442,3.2078,3146.6,3146.5,1.6902]
[1763489133948,0.51516,3146.6,3146.5,4.898]
[1763489138556,0.51524,3146.1,3146.0,4.898]
[1763489139749,3.72296,3146.6,3146.5,1.6902]
[1763489139956,4.81276,3146.6,3146.5,1.0427]
[1763489140264,0.51524,3146.1,3146.0,4.898]
[1763489142852,0.51521,3146.4,3146.3,1.0427]
[1763489143356,0.51508,3147.1,3147.0,1.6624]
[1763489144059,0.51507,3147.2,3147.0,0.6197]
[1763489144258,0.2796,3148.0,3147.0,0.6197]
[1763489144259,4.33885191,3148.3,3147.5,0.6475]
[1763489144560,0.51494,3148.0,3147.9,1.0427]
[1763489144762,0.51492,3148.1,3148.0,0.6475]
[1763489144962,0.5149,3148.3,3148.2,1.0427]
[1763489145164,3.2078,3148.8,3148.7,1.0427]
[1763489145353,3.7226,3148.8,3148.7,1.0427]
[1763489150361,3.2078,3148.8,3148.4,0.00476198]
[1763489150567,0.51485,3148.5,3148.4,1.04746198]
[1763489154070,1.60465,3148.5,3148.4,0.00476198]
[1763489154463,1.60465,3148.5,3148.4,1.04746198]
[1763489154865,0.51485,3148.5,3148.4,1.04746198]
[1763489155575,1.60465,3148.5,3148.4,0.00476198]
[1763489156263,1.60465,3148.5,3148.4,1.04746198]
[1763489156769,1.0898,3147.8,3147.7,3.21041421]
[1763489156963,0.51497,3147.8,3147.7,4.25311421]
[1763489157462,0.51495,3147.9,3147.8,1.0352]
[1763489158560,0.51493,3148.1,3148.0,1.6391]
[1763489160471,1.52053,3148.1,3148.0,1.0352]
[1763489160772,0.51493,3148.1,3148.0,1.6391]
[1763489161075,3.2078,3148.8,3148.2,1.0352]
[1763489161275,0.51488,3148.3,3148.2,1.0352]
[1763489161574,0.51488,3148.3,3148.2,4.243]
[1763489161866,0.51951198,3149.1,3149.0,1.0352]
[1763489162068,0.51951198,3149.1,3149.0,1.6391]
[1763489163575,0.5148,3148.8,3148.7,4.243]
[1763489165262,0.00476198,3149.1,3149.0,1.6391]
[1763489165673,0.51951198,3149.1,3149.0,1.6391]
[1763489166067,3.72246,3149.7,3149.6,1.0352]
[1763489166472,0.51472,3149.3,3149.2,4.243]
[1763489166771,1.52032,3149.3,3149.2,4.243]
[1763489167073,1.52032,3149.3,3149.2,3.2078]
[1763489167280,0.51482,3148.8,3148.7,4.243]
[1763489168575,3.2078,3149.2,3148.7,3.2078]
[1763489168769,0.5148,3148.8,3148.7,4.243]
[1763489169284,3.72254,3149.2,3149.1,1.0352]
[1763489169778,0.00476198,3149.6,3149.5,1.0352]
[1763489169779,0.51943198,3149.6,3149.5,1.0352]
[1763489169968,0.51943198,3149.6,3149.5,4.243]
[1763489171267,1.52503198,3149.6,3149.5,4.243]
[1763489171472,0.51943198,3149.6,3149.5,4.243]
[1763489172171,1.52035,3149.1,3149.0,3.2078]
[1763489172372,0.51482,3148.7,3148.6,4.243]
[1763489173878,1.52042,3148.7,3148.6,3.2078]
[1763489174380,0.51482,3148.7,3148.6,4.243]
[1763489175479,1.72262,3149.3,3148.6,4.243]
[1763489175683,2.11705,3148.5,3148.4,0.00476198]
[1763489176276,8.11705,3148.5,3148.4,1.98e-06]
[1763489176473,9.24810191,3148.5,3148.4,1.98e-06]
[1763489176671,8.11705,3148.5,3148.4,1.98e-06]
[1763489178082,1.52045,3148.5,3148.4,1.98e-06]
[1763489179480,5.32485,3148.5,3148.4,1.98e-06]
[1763489180379,5.32245,3148.5,3148.4,1.98e-06]
[1763489181473,2.11465,3148.5,3148.4,1.98e-06]
[1763489181673,0.51245,3148.5,3148.4,1.01020198]
[1763489190086,0.51483,3148.7,3148.6,0.9905]
[1763489190287,0.51483,3148.7,3148.6,4.1983]
[1763489190788,0.51483,3148.7,3148.6,0.9905]
[1763489191792,0.51483,3148.7,3148.6,4.1983]
[1763489192187,0.5148,3148.9,3148.6,4.06256344]
[1763489192386,0.51481,3148.8,3148.7,0.9905]
[1763489193192,0.51479,3148.9,3148.8,0.9905]
[1763489195284,0.00476198,3149.6,3149.5,0.9905]
[1763489195489,0.00476198,3149.6,3149.5,4.1983]
[1763489195791,0.51943198,3149.6,3149.5,4.1983]
[1763489197490,0.98196198,3149.6,3149.1,3.2078]
[1763489197692,0.00476198,3149.6,3149.5,5.31399]
[1763489197995,0.09064158,3150.4,3150.3,0.9905]
[1763489198289,0.09064158,3150.4,3150.3,4.20230747]
[1763489199198,2.41928356,3151.1,3150.9,0.9905]
[1763489199387,0.9772,3151.0,3150.9,0.9905]
[1763489199885,2.41928356,3151.1,3150.9,0.9905]
[1763489200086,1.49164,3151.0,3150.9,0.9905]
[1763489200393,0.51451,3150.6,3150.5,1.5915]
[1763489200590,0.5145,3150.7,3150.6,0.9905]
[1763489201290,0.51915198,3151.3,3151.2,0.9905]
[1763489202189,3.2078,3151.9,3151.2,4.1983]
[1763489202396,0.51439,3151.3,3151.2,4.1983]
[1763489202900,0.51448,3150.8,3150.7,4.1983]
[1763489204497,0.00476,3151.1,3150.7,4.1983]
[1763489204498,0.00476,3151.1,3151.0,0.9905]
[1763489205391,0.51919,3151.1,3151.0,0.9905]
[1763489205590,0.85136873,3152.2,3151.0,0.9905]
[1763489205591,3.2078,3152.3,3151.8,0.9905]
[1763489205796,0.5143,3151.9,3151.8,0.9905]
[1763489207292,0.51421,3152.4,3152.3,0.9905]
[1763489207804,0.51433,3151.7,3151.6,4.1983]
[1763489208294,5.9834,3152.5,3151.6,4.1983]
[1763489208700,0.51433,3151.8,3151.7,0.9905]
[1763489209195,3.2078,3152.7,3151.7,0.9905]
[1763489209499,3.2078,3152.7,3152.0,3.2078]
[1763489209698,0.51426,3152.1,3152.0,3.2078]
[1763489209889,0.51426,3152.1,3152.0,4.7993]
[1763489210693,0.51421,3152.4,3152.3,0.9905]